bitfinex/quotes_BTCUSD_20220207
["timestamp","ask_amount","ask_price","bid_price","bid_amount"]
[1644206611202,0.72610981,42831.0,42830.0,0.00063502]
[1644206611403,0.71397983,42831.0,42830.0,0.00063502]
[1644206611600,0.39821491,42831.0,42830.0,0.00063502]
[1644206611800,0.07168591,42831.0,42824.0,0.02831409]
[1644206612000,0.058385,42832.0,42828.0,0.00063504]
[1644206612199,6.09e-05,42831.0,42828.0,0.00063504]
[1644206613002,6.09e-05,42831.0,42825.0,0.00027126]
[1644206613205,6.09e-05,42831.0,42827.0,0.00062403]
[1644206613601,0.0140609,42831.0,42827.0,0.00062403]
[1644206613858,0.0140609,42831.0,42827.0,0.00089529]
[1644206614051,0.0140609,42831.0,42827.0,0.00027126]
[1644206614351,0.0140609,42831.0,42827.0,0.00062404]
[1644206614552,0.60667774,42831.0,42827.0,0.0008953]
[1644206614753,0.59267774,42831.0,42827.0,0.0008953]
[1644206615357,0.35055078,42831.0,42827.0,0.00027126]
[1644206615557,0.0290609,42831.0,42827.0,0.00062404]
[1644206615755,0.0290609,42831.0,42827.0,0.0008953]
[1644206616557,0.0290609,42831.0,42827.0,0.00027126]
[1644206616856,6.09e-05,42831.0,42827.0,0.00088651]
[1644206617057,6.09e-05,42831.0,42830.0,0.02831409]
[1644206617261,6.09e-05,42831.0,42830.0,0.35484309]
[1644206617457,0.0370609,42831.0,42828.0,0.00027126]
[1644206617720,0.037,42831.0,42830.0,0.02831409]
[1644206618128,0.037,42831.0,42828.0,0.00027126]
[1644206618129,0.05,42829.0,42828.0,0.00027126]
[1644206618320,0.72421144,42829.0,42827.0,0.00047693]
[1644206618518,0.53619827,42828.0,42827.0,0.00047693]
[1644206618918,0.53619827,42828.0,42822.0,0.00027126]
[1644206619118,0.53619827,42828.0,42825.0,0.00047696]
[1644206619320,0.05,42826.0,42825.0,0.00047696]
[1644206619518,0.423229,42826.0,42825.0,0.00047696]
[1644206620119,0.23794597,42826.0,42823.0,0.00027126]
[1644206620318,0.0467,42826.0,42823.0,0.00062945]
[1644206621119,0.0467,42826.0,42823.0,0.00090071]
[1644206621357,0.0467,42826.0,42823.0,0.00027126]
[1644206621549,0.0787,42826.0,42822.0,0.07902425]
[1644206621949,0.032,42826.0,42822.0,0.07902425]
[1644206622548,0.032,42826.0,42822.0,0.07840042]
[1644206622750,0.34396,42826.0,42825.0,0.02831409]
[1644206623155,0.34396,42826.0,42823.0,0.00027126]
[1644206623354,0.65735848,42828.0,42822.0,0.07902425]
[1644206623550,0.023,42826.0,42822.0,0.07902425]
[1644206623750,0.023,42826.0,42822.0,0.07840042]
[1644206623950,0.023,42826.0,42823.0,0.00062382]
[1644206624150,0.023,42826.0,42823.0,0.00089508]
[1644206624352,0.023,42826.0,42823.0,0.00062382]
[1644206624549,0.2923961,42826.0,42823.0,0.00062382]
[1644206624749,0.2693961,42826.0,42823.0,0.00062382]
[1644206624950,0.2693961,42826.0,42822.0,0.00027126]
[1644206625205,0.2693961,42826.0,42822.0,0.00062383]
[1644206625405,0.2693961,42826.0,42822.0,0.00089509]
[1644206625605,0.3193961,42826.0,42822.0,0.00089509]
[1644206626208,0.05,42826.0,42822.0,0.00027126]
[1644206626407,0.05,42826.0,42822.0,0.00061366]
[1644206626607,0.05,42826.0,42822.0,0.00088492]
[1644206626906,0.05,42827.0,42822.0,0.00088492]
[1644206627107,0.23884394,42825.0,42822.0,0.00088492]
[1644206627308,0.23884394,42825.0,42822.0,0.00027126]
[1644206627607,0.29723494,42825.0,42821.0,0.17437716]
[1644206627806,0.058391,42825.0,42821.0,0.17437716]
[1644206628207,0.058391,42825.0,42821.0,0.03892776]
[1644206628408,0.08007691,42825.0,42821.0,0.03892776]
[1644206628613,0.058391,42825.0,42821.0,0.03831409]
[1644206628859,0.058391,42825.0,42821.0,0.03892776]
[1644206629549,0.126391,42825.0,42821.0,0.03892776]
[1644206629751,0.05,42822.0,42821.0,0.03831409]
[1644206629953,0.05,42822.0,42818.0,0.00027126]
[1644206629954,0.7,42821.0,42818.0,0.00027126]
[1644206630153,0.78378617,42824.0,42816.0,0.19790046]
[1644206630154,0.0584,42818.0,42816.0,0.19790046]
[1644206630350,0.0584,42818.0,42817.0,0.326698]
[1644206630753,0.39845479,42818.0,42817.0,0.426698]
[1644206631553,0.41145479,42818.0,42817.0,0.426698]
[1644206631754,0.0714,42818.0,42817.0,0.426698]
[1644206631954,0.013,42818.0,42817.0,0.426698]
[1644206632801,0.00012,42818.0,42817.0,0.426698]
[1644206633100,0.00012,42818.0,42817.0,0.1]
[1644206633301,0.00012,42818.0,42814.0,0.1976292]
[1644206633500,0.03312,42818.0,42813.0,0.1976292]
[1644206633704,0.03312,42818.0,42815.0,0.00066175]
[1644206634100,0.03312,42818.0,42815.0,0.26801177]
[1644206634501,0.03312,42818.0,42816.0,0.326698]
[1644206634904,0.03312,42818.0,42816.0,0.476698]
[1644206635102,0.03312,42818.0,42816.0,0.426698]
[1644206635301,0.33003982,42818.0,42816.0,0.426698]
[1644206635503,0.33003982,42818.0,42816.0,0.1]
[1644206635504,0.083522,42818.0,42816.0,0.1]
[1644206635903,0.06705372,42817.0,42815.0,0.00027126]
[1644206636102,0.083522,42818.0,42815.0,0.00066176]
[1644206636551,0.24320654,42817.0,42815.0,0.00066176]
[1644206636952,0.24320654,42817.0,42811.0,0.00027126]
[1644206637151,0.32414339,42817.0,42810.0,0.39680596]
[1644206637350,0.08093685,42817.0,42810.0,0.34680596]
[1644206637551,0.08793685,42817.0,42810.0,0.44680596]
[1644206637752,0.08793685,42817.0,42811.0,0.326698]
[1644206637952,0.08793685,42817.0,42811.0,0.32696926]
[1644206638153,0.08793685,42817.0,42811.0,0.15027126]
[1644206638353,0.19172885,42816.0,42812.0,0.00066117]
[1644206638553,0.19172885,42816.0,42812.0,0.00093243]
[1644206639262,0.25013185,42816.0,42812.0,0.00093243]
[1644206639558,0.25013185,42816.0,42810.0,0.15]
[1644206639559,2.48493277,42815.0,42811.0,0.00027126]
[1644206639755,0.077403,42816.0,42808.0,0.31774692]
[1644206639955,0.019,42816.0,42809.0,0.326698]
[1644206640205,0.01207345,42816.0,42814.0,0.19747961]
[1644206640501,0.01207345,42816.0,42815.0,0.70399431]
[1644206640705,0.01207345,42816.0,42815.0,0.90147392]
[1644206640903,0.01207345,42816.0,42815.0,1.2903506]
[1644206641302,0.01207345,42816.0,42815.0,1.3403506]
[1644206641510,0.01207345,42816.0,42815.0,1.3543506]
[1644206641904,0.01207345,42816.0,42815.0,1.20357099]
[1644206642104,0.00018238,42818.0,42817.0,0.326698]
[1644206642302,0.00018238,42818.0,42817.0,0.82102202]
[1644206642503,0.00018238,42818.0,42817.0,1.06845065]
[1644206642704,0.00018238,42818.0,42817.0,0.87102202]
[1644206642904,0.00018238,42818.0,42817.0,1.06845065]
[1644206643106,0.08108712,42834.0,42817.0,1.06845065]
[1644206643107,0.27472215,42833.0,42817.0,1.06845065]
[1644206643306,0.27472215,42833.0,42818.0,0.00027126]
[1644206643505,0.27472215,42833.0,42819.0,0.0967]
[1644206643707,0.523674,42835.0,42820.0,0.28164575]
[1644206643958,0.26594621,42831.0,42820.0,0.37834575]
[1644206644160,0.26594621,42831.0,42827.0,0.19345279]
[1644206644356,0.26594621,42831.0,42825.0,0.08630879]
[1644206644555,0.26594621,42831.0,42820.0,0.19197126]
[1644206644754,0.26594621,42831.0,42821.0,0.00027126]
[1644206644755,0.38019525,42829.0,42821.0,0.00027126]
[1644206644954,0.38019525,42829.0,42820.0,0.24197126]
[1644206645254,0.26594621,42831.0,42820.0,0.24197126]
[1644206645255,0.11210689,42831.0,42821.0,0.6]
[1644206645455,0.4069,42835.0,42821.0,0.00027126]
[1644206645456,0.29093089,42824.0,42821.0,0.00027126]
[1644206645660,0.05,42822.0,42820.0,0.00827126]
[1644206645854,0.05,42824.0,42820.0,0.008]
[1644206646058,0.05,42827.0,42820.0,0.008]
[1644206646257,0.1,42831.0,42820.0,0.00827126]
[1644206646454,0.108391,42828.0,42820.0,0.00827126]
[1644206646855,0.22616131,42825.0,42820.0,0.00027126]
[1644206647055,0.27616131,42825.0,42819.0,0.07339463]
[1644206647256,0.27616131,42825.0,42819.0,0.0006606]
[1644206647715,0.31196,42824.0,42819.0,0.0056606]
[1644206647915,0.31196,42824.0,42819.0,0.005]
[1644206648115,0.31196,42824.0,42819.0,0.00566059]
[1644206648619,0.2830686,42822.0,42819.0,0.00566059]
[1644206648815,0.27616131,42825.0,42819.0,0.00566059]
[1644206649115,0.31196,42824.0,42819.0,0.005]
[1644206649317,0.058398,42822.0,42819.0,0.00566059]
[1644206649516,0.058398,42822.0,42820.0,0.326698]
[1644206649717,0.058398,42822.0,42819.0,0.00566059]
[1644206650318,0.058398,42822.0,42819.0,0.005]
[1644206650716,0.058398,42822.0,42819.0,0.00527126]
[1644206650916,0.058398,42822.0,42819.0,0.00027126]
[1644206651117,0.058398,42822.0,42818.0,0.00066059]
[1644206651364,0.058398,42822.0,42819.0,0.23004349]
[1644206651558,0.058398,42822.0,42819.0,0.23031475]
[1644206651756,0.058398,42822.0,42819.0,0.13031475]
[1644206652156,0.00012,42824.0,42819.0,0.13031475]
[1644206652558,0.00012,42824.0,42819.0,0.00027126]
[1644206652760,0.00012,42824.0,42818.0,0.001]
[1644206652761,0.22521087,42823.0,42818.0,0.001]
[1644206652959,0.22521087,42823.0,42817.0,0.09936048]
[1644206653159,0.22521087,42823.0,42816.0,0.15]
[1644206653160,0.55954914,42823.0,42816.0,0.15]
[1644206653360,0.05,42818.0,42815.0,0.225]
[1644206653558,0.00012,42822.0,42817.0,0.002]
[1644206653759,0.05012,42822.0,42814.0,0.002]
[1644206653959,0.00012,42822.0,42813.0,0.29680596]
[1644206654159,0.0739743,42822.0,42813.0,0.29680596]
[1644206654358,0.0739743,42822.0,42813.0,0.19680596]
[1644206655099,0.6,42821.0,42813.0,0.09680596]
[1644206655300,0.0584,42820.0,42815.0,0.00052227]
[1644206655500,0.05,42818.0,42815.0,0.00052227]
[1644206655900,0.20408373,42819.0,42813.0,0.00332823]
[1644206656500,0.20408373,42819.0,42811.0,0.39930239]
[1644206656699,0.05,42817.0,42811.0,0.39597416]
[1644206656899,0.05,42817.0,42812.0,0.326698]
[1644206657202,0.20408373,42819.0,42812.0,0.226698]
[1644206657400,0.05,42817.0,42812.0,0.62267216]
[1644206657600,0.097,42817.0,42812.0,0.334698]
[1644206657802,0.047,42817.0,42812.0,0.63067216]
[1644206658003,0.047,42817.0,42812.0,0.52567216]
[1644206658404,0.047,42817.0,42812.0,0.52067216]
[1644206658858,0.20408373,42819.0,42814.0,0.25329559]
[1644206659253,0.20408373,42819.0,42812.0,0.39597416]
[1644206659454,0.20408373,42819.0,42812.0,0.19597416]
[1644206659655,0.26008373,42819.0,42814.0,0.005]
[1644206660255,0.01992619,42819.0,42814.0,0.25239269]
[1644206660857,0.30367648,42820.0,42814.0,0.25239269]
[1644206661155,0.30321238,42820.0,42814.0,0.15239269]
[1644206661754,0.30321238,42820.0,42814.0,0.05839269]
[1644206662359,0.058401,42820.0,42814.0,0.05839269]
[1644206662608,0.85,42816.0,42812.0,0.006]
[1644206662805,0.908409,42816.0,42810.0,0.1]
[1644206663003,2.89490302,42816.0,42814.0,0.19784223]
[1644206663404,0.19983819,42815.0,42814.0,0.09784223]
[1644206663603,0.46327274,42815.0,42814.0,0.09784223]
[1644206664005,2.43735141,42816.0,42814.0,0.09284223]
[1644206664006,2.43747141,42816.0,42814.0,0.09284223]
[1644206664307,2.43747141,42816.0,42810.0,0.13035891]
[1644206664605,0.067529,42816.0,42811.0,0.326756]
[1644206664805,0.067529,42816.0,42812.0,0.14728496]
[1644206665009,0.25323765,42815.0,42813.0,0.326756]
[1644206665206,0.25323765,42815.0,42811.0,0.10066009]
[1644206665505,0.25323765,42815.0,42811.0,0.15066009]
[1644206665705,0.26423765,42815.0,42811.0,0.04566009]
[1644206665906,0.26423765,42815.0,42810.0,0.05]
[1644206666106,0.26423765,42815.0,42811.0,0.00066009]
[1644206666557,0.34486654,42815.0,42807.0,0.38080551]
[1644206666854,0.22997327,42812.0,42808.0,0.326756]
[1644206667053,0.22997327,42812.0,42807.0,0.38080551]
[1644206667454,0.25404581,42808.0,42807.0,0.28080551]
[1644206667660,0.23197327,42812.0,42807.0,0.426756]
[1644206667854,0.23197327,42812.0,42807.0,0.1]
[1644206668054,0.23197327,42812.0,42803.0,0.1339]
[1644206668256,0.23197327,42812.0,42808.0,0.2966734]
[1644206668656,0.56187943,42812.0,42809.0,0.2966734]
[1644206668857,0.33190616,42812.0,42809.0,0.24693873]
[1644206669056,0.32990616,42812.0,42809.0,0.24693873]
[1644206669657,0.33390616,42812.0,42809.0,0.14693873]
[1644206669858,0.26421692,42810.0,42809.0,0.14693873]
[1644206670100,0.26421692,42810.0,42809.0,0.0466734]
[1644206670307,0.26421692,42810.0,42809.0,0.0966734]
[1644206670501,0.33390616,42812.0,42808.0,0.00066012]
[1644206670701,0.33390616,42812.0,42804.0,0.00026533]
[1644206670901,0.33390616,42812.0,42808.0,0.00062912]
[1644206670902,0.32990616,42812.0,42808.0,0.00062912]
[1644206671303,0.32990616,42812.0,42802.0,0.14159355]
[1644206671507,0.32990616,42812.0,42798.0,0.02585705]
[1644206671508,0.05,42803.0,42798.0,0.02585705]
[1644206671703,0.05,42803.0,42799.0,0.06559958]
[1644206671704,0.05,42801.0,42799.0,0.06559958]
[1644206671903,0.22685508,42803.0,42798.0,0.02585705]
[1644206671904,0.0966,42800.0,42798.0,0.02585705]
[1644206672102,0.0467,42800.0,42798.0,0.02585705]
[1644206672303,0.0467,42800.0,42799.0,0.43487431]
[1644206672502,1.77950677,42810.0,42799.0,0.46877525]
[1644206672503,0.0467,42810.0,42799.0,0.46877525]
[1644206672703,0.009,42812.0,42805.0,0.0001]
[1644206672905,0.0499,42814.0,42805.0,0.0001]
[1644206672906,0.0499,42814.0,42809.0,0.0001]
[1644206673101,0.0499,42814.0,42805.0,0.0001]
[1644206673303,0.0999,42814.0,42808.0,0.25345591]
[1644206673501,0.0999,42814.0,42808.0,0.34192114]
[1644206674354,0.09002,42814.0,42808.0,0.34192114]
[1644206674554,0.09002,42814.0,42808.0,0.34202114]
[1644206674555,0.0499,42814.0,42808.0,0.34202114]
[1644206674754,0.0499,42814.0,42809.0,0.326856]
[1644206674957,0.166814,42821.0,42812.0,0.0001]
[1644206674959,0.0999,42821.0,42812.0,0.0001]
[1644206675158,0.3915,42823.0,42817.0,0.0001]
[1644206675357,0.5584,42828.0,42818.0,0.0467]
[1644206675358,0.21454237,42828.0,42818.0,0.0467]
[1644206675664,0.30021019,42833.0,42818.0,0.0467]
[1644206675665,0.20016815,42834.0,42826.0,0.23453758]
[1644206675859,0.20016815,42836.0,42827.0,0.0467]
[1644206676058,0.24028815,42837.0,42827.0,0.0467]
[1644206676259,0.0499,42834.0,42827.0,0.0467]
[1644206676457,0.20260616,42833.0,42827.0,0.0467]
[1644206676656,0.04012,42835.0,42827.0,0.0467]
[1644206676657,0.20016815,42836.0,42827.0,0.0467]
[1644206676858,0.0499,42834.0,42827.0,0.0467]
[1644206677059,0.25006815,42837.0,42827.0,0.0467]
[1644206677258,0.23071056,42836.0,42827.0,0.0467]
[1644206677459,0.058386,42833.0,42831.0,0.08057368]
[1644206677706,0.058386,42833.0,42830.0,0.0467]
[1644206677707,0.27397144,42833.0,42830.0,0.0467]
[1644206678107,0.326756,42832.0,42830.0,0.0467]
[1644206679406,0.09002,42831.0,42830.0,0.0467]
[1644206679606,0.385215,42831.0,42830.0,0.0467]
[1644206680206,0.385215,42831.0,42821.0,0.19380622]
[1644206680207,0.21289669,42824.0,42821.0,0.19380622]
[1644206680418,0.21289669,42824.0,42822.0,0.373556]
[1644206680606,0.21289669,42824.0,42823.0,0.0467]
[1644206680807,0.16114294,42824.0,42823.0,0.0467]
[1644206681459,0.16114294,42824.0,42823.0,0.13289252]
[1644206681660,0.19114294,42824.0,42823.0,0.0577]
[1644206681859,0.51789894,42824.0,42823.0,0.011]
[1644206682059,0.19114294,42824.0,42823.0,0.011]
[1644206682260,0.03,42824.0,42823.0,0.011]
[1644206682958,0.00031469,42826.0,42821.0,0.0001]
[1644206683162,0.05870569,42826.0,42821.0,0.0001]
[1644206683360,0.05870569,42826.0,42822.0,0.08715002]
[1644206683565,0.058391,42826.0,42822.0,0.08715002]
[1644206683759,0.101391,42826.0,42822.0,0.08715002]
[1644206684158,0.10170569,42826.0,42822.0,0.08715002]
[1644206684361,0.10170569,42826.0,42821.0,0.003]
[1644206684362,0.25170149,42822.0,42821.0,0.003]
[1644206684562,0.21445352,42815.0,42811.0,0.42039791]
[1644206684761,0.0499,42812.0,42808.0,0.38639791]
[1644206684962,0.0499,42812.0,42809.0,0.326756]
[1644206685215,0.0499,42812.0,42808.0,0.09]
[1644206685716,0.0579,42812.0,42809.0,0.326756]
[1644206685915,0.008,42812.0,42809.0,0.326756]
[1644206686118,0.008,42812.0,42809.0,0.62315391]
[1644206686318,0.4191,42825.0,42812.0,0.85]
[1644206686517,6.09e-05,42831.0,42824.0,0.0001]
[1644206686717,6.09e-05,42831.0,42829.0,0.08251518]
[1644206686915,6.09e-05,42831.0,42830.0,0.0467]
[1644206687316,0.0401809,42831.0,42830.0,0.0467]
[1644206687618,6.09e-05,42831.0,42830.0,0.0467]
[1644206687815,0.0150609,42831.0,42830.0,0.0527]
[1644206688416,0.0100609,42831.0,42830.0,0.0527]
[1644206689052,0.27001282,42832.0,42830.0,0.0467]
[1644206689252,0.326756,42831.0,42830.0,0.0467]
[1644206689854,0.338756,42831.0,42830.0,0.0487]
[1644206690755,0.338756,42831.0,42830.0,0.002]
[1644206690956,0.366876,42831.0,42824.0,0.0467]
[1644206691156,0.0499,42828.0,42824.0,0.0467]
[1644206691356,0.0499,42828.0,42825.0,0.326756]
[1644206691654,2.3567435,42827.0,42823.0,0.0001]
[1644206691853,2.3567435,42827.0,42825.0,0.07423505]
[1644206692053,2.3567435,42827.0,42826.0,0.22476914]
[1644206692254,2.3567435,42827.0,42824.0,0.017]
[1644206692255,2.72400312,42827.0,42824.0,0.017]
[1644206692459,0.09002,42825.0,42824.0,0.017]
[1644206692712,0.09002,42825.0,42824.0,0.0041654]
[1644206692713,0.86514048,42825.0,42824.0,0.0041654]
[1644206692911,0.81514048,42825.0,42824.0,1e-08]
[1644206693111,0.53838448,42825.0,42812.0,0.00025976]
[1644206693313,0.45676748,42825.0,42813.0,0.3799459]
[1644206693513,0.0499,42820.0,42814.0,0.0001]
[1644206693815,0.0499,42820.0,42815.0,0.326756]
[1644206694212,0.0499,42820.0,42816.0,0.06778812]
[1644206694413,0.0499,42820.0,42815.0,0.22315387]
[1644206694613,0.00038362,42820.0,42815.0,0.22315387]
[1644206695217,0.05878362,42820.0,42814.0,0.0001]
[1644206695415,0.22942025,42814.0,42811.0,0.00025976]
[1644206695616,0.0499,42812.0,42811.0,0.326756]
[1644206695818,0.42884978,42812.0,42809.0,0.00025976]
[1644206696015,0.326756,42811.0,42809.0,0.00025976]
[1644206696214,0.42884978,42812.0,42808.0,0.09]
[1644206696215,0.04012,42810.0,42808.0,0.09]
[1644206696470,0.0499,42809.0,42808.0,0.09]
[1644206697761,0.0629,42809.0,42808.0,0.09]
[1644206698963,0.0499,42809.0,42808.0,0.09]
[1644206699763,0.0679,42809.0,42808.0,0.416756]
[1644206700405,0.018,42809.0,42808.0,0.416756]
[1644206701006,6e-05,42810.0,42808.0,0.416756]
[1644206701205,0.0499,42809.0,42808.0,0.09]
[1644206701406,6e-05,42810.0,42808.0,0.09]
[1644206701808,0.007,42809.0,42808.0,0.09]
[1644206702005,0.04712,42809.0,42808.0,0.09]
[1644206702405,0.24161972,42811.0,42808.0,0.09]
[1644206702605,0.04012,42810.0,42808.0,0.09]
[1644206703005,0.058422,42812.0,42808.0,0.09]
[1644206703205,0.05889098,42812.0,42808.0,0.09]
[1644206703405,0.04012,42811.0,42808.0,0.09]
[1644206704468,0.29186704,42812.0,42808.0,0.09]
[1644206704965,0.31107854,42811.0,42808.0,0.09]
[1644206705166,0.04012,42809.0,42808.0,0.09]
[1644206705370,0.37278813,42809.0,42808.0,0.09]
[1644206705569,0.69954413,42809.0,42808.0,0.09]
[1644206705768,0.69954413,42809.0,42803.0,0.00025976]
[1644206705769,0.04012,42804.0,42803.0,0.00025976]
[1644206705967,0.70524033,42804.0,42795.0,0.00187688]
[1644206706166,0.70524033,42804.0,42796.0,0.00025972]
[1644206706167,0.08379908,42800.0,42796.0,0.00025972]
[1644206706366,0.04012,42801.0,42796.0,0.00025972]
[1644206706769,0.04012,42801.0,42792.0,0.00025972]
[1644206706966,0.058431,42801.0,42797.0,0.00103704]
[1644206707167,0.46004533,42804.0,42797.0,0.00103704]
[1644206707168,0.41004533,42804.0,42797.0,0.00077732]
[1644206707368,0.46004533,42804.0,42797.0,0.00077732]
[1644206707609,0.04012,42801.0,42797.0,0.00077732]
[1644206707808,0.62470627,42800.0,42797.0,0.00077732]
[1644206708008,0.05,42799.0,42797.0,0.00077732]
[1644206708208,0.31457721,42798.0,42797.0,0.00077732]
[1644206708411,0.36457721,42798.0,42797.0,0.00077732]
[1644206709207,0.05,42798.0,42797.0,0.00077732]
[1644206709609,0.5118958,42797.0,42796.0,0.00025977]
[1644206709810,0.5118958,42797.0,42792.0,0.00025977]
[1644206709811,0.326756,42796.0,42792.0,0.00025977]
[1644206710010,0.295195,42793.0,42791.0,0.00941584]
[1644206710209,0.3167008,42797.0,42791.0,0.00941584]
[1644206710412,0.295195,42796.0,42791.0,0.00441584]
[1644206710810,0.04012,42793.0,42791.0,0.00441584]
[1644206711010,0.295195,42796.0,42791.0,0.00441584]
[1644206711011,0.058438,42795.0,42791.0,0.00441584]
[1644206711211,0.326756,42794.0,42791.0,0.00441584]
[1644206711661,0.058438,42795.0,42791.0,0.00441584]
[1644206711862,0.019,42794.0,42791.0,0.00441584]
[1644206712464,0.06848856,42792.0,42791.0,0.00441584]
[1644206713464,0.04012,42794.0,42791.0,0.00441584]
[1644206713862,0.017,42792.0,42791.0,0.00441584]
[1644206714667,0.343756,42792.0,42791.0,0.00441584]
[1644206714864,0.66857284,42792.0,42791.0,0.00441584]
[1644206715108,0.65157284,42792.0,42791.0,0.00441584]
[1644206715707,0.74563702,42792.0,42791.0,0.00441584]
[1644206717109,0.73263702,42792.0,42791.0,0.00441584]
[1644206717511,0.85,42791.0,42790.0,0.00204437]
[1644206717712,1.16275203,42791.0,42790.0,0.00204437]
[1644206717910,0.41982018,42792.0,42790.0,0.00204437]
[1644206718312,0.41982018,42792.0,42791.0,0.004805]
[1644206718313,0.338756,42792.0,42791.0,0.004805]
[1644206719158,0.326756,42792.0,42791.0,0.004805]
[1644206719757,0.338756,42792.0,42791.0,0.00473]
[1644206720960,0.326756,42792.0,42791.0,0.00473]
[1644206721759,0.342756,42792.0,42791.0,0.00473]
[1644206721960,0.392756,42792.0,42791.0,0.00473]
[1644206722262,0.342756,42792.0,42791.0,0.00473]
[1644206723104,0.326756,42792.0,42791.0,0.00473]
[1644206723705,0.389756,42792.0,42791.0,0.00473]
[1644206724205,0.339756,42792.0,42791.0,0.00473]
[1644206724606,0.389756,42792.0,42791.0,0.00473]
[1644206724906,0.384756,42792.0,42791.0,0.00473]
[1644206725108,0.371756,42792.0,42791.0,0.00473]
[1644206725707,0.384756,42792.0,42791.0,0.00473]
[1644206726957,0.371756,42792.0,42791.0,0.00473]
[1644206727760,0.384756,42792.0,42791.0,0.00473]
[1644206728859,0.339756,42792.0,42791.0,0.00473]
[1644206729059,0.326756,42792.0,42791.0,0.00473]
[1644206729859,0.338756,42792.0,42791.0,0.00473]
[1644206731808,0.350756,42792.0,42791.0,0.00473]
[1644206732008,0.400756,42792.0,42791.0,0.00473]
[1644206733008,0.376756,42792.0,42791.0,0.00473]
[1644206733864,0.505667,42792.0,42791.0,0.00473]
[1644206734956,0.493667,42792.0,42791.0,0.00473]
[1644206735758,0.507667,42792.0,42791.0,0.00473]
[1644206736959,0.607667,42792.0,42791.0,0.00473]
[1644206737258,0.593667,42792.0,42791.0,0.00473]
[1644206737709,0.535211,42792.0,42791.0,0.00473]
[1644206737913,0.548211,42792.0,42791.0,0.00473]
[1644206739215,0.535211,42792.0,42791.0,0.00473]
[1644206739912,0.549211,42792.0,42791.0,0.00473]
[1644206741115,0.535211,42792.0,42791.0,0.00473]
[1644206741759,0.548211,42792.0,42791.0,0.00473]
[1644206743061,0.535211,42792.0,42791.0,0.00473]
[1644206743460,0.435211,42792.0,42791.0,0.00473]
[1644206743961,0.447211,42792.0,42791.0,0.00473]
[1644206745205,0.435211,42792.0,42791.0,0.00473]
[1644206745807,0.447211,42792.0,42791.0,0.00473]
[1644206746607,0.85,42791.0,42790.0,0.00025977]
[1644206746810,0.85,42791.0,42789.0,0.00063158]
[1644206746811,0.21385095,42790.0,42789.0,0.00089135]
[1644206747010,0.79551432,42790.0,42789.0,0.00063158]
[1644206747210,0.83563432,42790.0,42789.0,0.00063158]
[1644206747410,0.83563432,42790.0,42788.0,0.00025977]
[1644206747607,0.83563432,42790.0,42787.0,0.001]
[1644206747608,0.816912,42789.0,42787.0,0.0006316]
[1644206747809,0.04012,42788.0,42787.0,0.0006316]
[1644206748008,0.43001603,42788.0,42787.0,0.0006316]
[1644206748215,0.74561639,42788.0,42787.0,0.0006316]
[1644206748413,0.84561639,42788.0,42787.0,0.0006316]
[1644206748611,0.84561639,42788.0,42781.0,0.003]
[1644206748867,0.38802681,42782.0,42781.0,0.003]
[1644206749060,0.58784611,42782.0,42781.0,0.003]
[1644206749259,1.13277026,42782.0,42781.0,0.003]
[1644206749481,0.83486345,42782.0,42781.0,0.003]
[1644206749659,0.58504415,42782.0,42781.0,0.053]
[1644206749859,0.60604415,42782.0,42781.0,0.053]
[1644206750060,0.60604415,42782.0,42781.0,0.003]
[1644206750870,0.76765774,42782.0,42781.0,0.003]
[1644206751061,0.74665774,42782.0,42781.0,0.003]
[1644206751662,0.74665774,42782.0,42781.0,0.00293374]
[1644206751864,0.76565774,42782.0,42781.0,0.00293374]
[1644206752909,0.80577774,42782.0,42781.0,0.00293374]
[1644206753110,0.78677774,42782.0,42781.0,0.00293374]
[1644206753308,0.74665774,42782.0,42781.0,0.00293374]
[1644206753910,0.76265774,42782.0,42781.0,0.00293374]
[1644206754313,0.76265774,42782.0,42778.0,0.003]
[1644206754314,0.04012,42779.0,42778.0,0.003]
[1644206754515,0.85,42778.0,42776.0,0.0009]
[1644206754715,0.85,42781.0,42772.0,0.0031]
[1644206754716,1.169584,42777.0,42772.0,0.0031]
[1644206754915,0.04012,42775.0,42768.0,0.0011]
[1644206755113,0.08405926,42770.0,42768.0,0.0011]
[1644206755315,0.26721289,42772.0,42768.0,0.0011]
[1644206755514,0.26721289,42772.0,42771.0,0.05]
[1644206755913,0.27221289,42772.0,42771.0,0.05]
[1644206756370,0.27221289,42772.0,42768.0,0.0511]
[1644206756563,0.07172139,42772.0,42768.0,0.0511]
[1644206756764,0.07072139,42772.0,42768.0,0.04328124]
[1644206756963,0.004,42772.0,42767.0,0.00030352]
[1644206757163,0.004,42772.0,42771.0,0.04328124]
[1644206757364,0.00671876,42773.0,42767.0,0.00030352]
[1644206757563,0.00671876,42773.0,42768.0,0.04328124]
[1644206757764,0.26294488,42777.0,42768.0,0.03828124]
[1644206758065,0.01171876,42772.0,42768.0,0.03828124]
[1644206758465,0.01,42773.0,42771.0,0.03828124]
[1644206758865,0.01,42773.0,42768.0,0.03828124]
[1644206759065,0.01171876,42774.0,42768.0,0.03828124]
[1644206759464,0.01171876,42774.0,42767.0,0.00030352]
[1644206759865,0.02271876,42774.0,42769.0,0.00065624]
[1644206760109,0.011,42774.0,42771.0,0.03828124]
[1644206760708,0.011,42774.0,42772.0,0.03828124]
[1644206761110,0.01171876,42778.0,42772.0,0.03828124]
[1644206761312,0.25228363,42775.0,42772.0,0.03828124]
[1644206761509,0.319584,42774.0,42772.0,0.03828124]
[1644206761708,0.319584,42774.0,42772.0,0.03628124]
[1644206763212,0.01371876,42773.0,42768.0,0.00025365]
[1644206763411,0.01371876,42773.0,42767.0,0.03658476]
[1644206763612,0.04012,42774.0,42767.0,0.03666556]
[1644206763865,0.02263796,42773.0,42767.0,0.03666556]
[1644206764057,0.19546103,42771.0,42767.0,0.03666556]
[1644206764457,0.06468093,42768.0,42767.0,0.03666556]
[1644206764657,0.19546103,42771.0,42767.0,0.03732197]
[1644206764857,0.02263796,42773.0,42770.0,0.03636204]
[1644206765058,0.01363796,42773.0,42770.0,0.03636204]
[1644206765857,0.016,42773.0,42770.0,0.03636204]
[1644206766059,0.319584,42771.0,42770.0,0.03636204]